lending/lending_fUSD_20260102
["ID","MTS","AMOUNT","RATE_DAILY","PERIOD"]
[400326425,1767376328254,250.0,0.00042915,120]
[400326426,1767376328452,500.0,0.00042915,120]
[400326427,1767376328848,250.0,0.00042915,120]
[400326428,1767376328899,200.0,0.00042915,120]
[400326429,1767376329047,500.0,0.00042915,120]
[400326430,1767376330633,296.44380111,0.00042915,120]
[400326431,1767376330933,151.0,0.00042915,120]
[400326432,1767376331541,156.587,0.00042915,120]
[400326433,1767376331847,500.0,0.00042915,120]
[400326434,1767376332129,156.587,0.00042915,120]
[400326435,1767376332865,151.0,0.00042915,120]
[400326436,1767376333600,151.0,0.00042915,120]
[400326437,1767376334615,500.0,0.00042915,120]
[400326438,1767376335061,151.0,0.00042915,120]
[400326439,1767376335188,500.0,0.00042915,120]
[400326440,1767376335221,500.0,0.00042915,120]
[400326441,1767376335663,156.587,0.00042915,120]
[400326442,1767376335786,500.0,0.00042915,120]
[400326443,1767376335836,500.0,0.00042915,120]
[400326444,1767376336278,162.380719,0.00042915,120]
[400326445,1767376336390,500.0,0.00042915,120]
[400326446,1767376336460,500.0,0.00042915,120]
[400326447,1767376336560,414.0,0.00042915,120]
[400326448,1767376336862,168.3888056,0.00042915,120]
[400326449,1767376337069,500.0,0.00042915,120]
[400326450,1767376337102,500.0,0.00042915,120]
[400326451,1767376337133,250.0,0.00042915,120]
[400326452,1767376337166,429.318,0.00042915,120]
[400326453,1767376337196,219.02625871,0.00042915,120]
[400326454,1767376337516,174.61919141,0.00042915,120]
[400326455,1767376337685,500.0,0.00042915,120]
[400326456,1767376337715,250.0,0.00042915,120]
[400326457,1767376337747,500.0,0.00042915,120]
[400326458,1767376337782,445.202766,0.00042915,120]
[400326459,1767376338107,174.61919141,0.00042915,120]
[400326460,1767376338283,500.0,0.00042915,120]
[400326461,1767376338317,250.0,0.00042915,120]
[400326462,1767376338350,500.0,0.00042915,120]
[400326463,1767376338382,461.67526834,0.00042915,120]
[400326464,1767376338928,250.0,0.00042915,120]
[400326465,1767376338961,500.0,0.00042915,120]
[400326466,1767376338993,478.75725327,0.00042915,120]
[400326467,1767376339522,250.0,0.00042915,120]
[400326468,1767376339569,496.47127164,0.00042915,120]
[400326469,1767376339603,6888.0,0.00042915,120]
[400326470,1767376340112,250.0,0.00042915,120]
[400326471,1767376340169,496.47127164,0.00042915,120]
[400326472,1767376340267,185.0,0.00042915,30]
[400326473,1767376341051,250.0,0.00042915,120]
[400326474,1767376341326,250.0,0.00042915,120]
[400326475,1767376341358,151.0,0.00042915,120]
[400326476,1767376341914,250.0,0.00042915,120]
[400326477,1767376341945,151.0,0.00042915,120]
[400326478,1767376342527,250.0,0.00042915,120]
[400326479,1767376342557,151.0,0.00042915,120]
[400326480,1767376343142,250.0,0.00042915,120]
[400326481,1767376343174,151.0,0.00042915,120]
[400326482,1767376343434,1106.08065579,0.00042915,120]
[400326483,1767376343774,151.0,0.00042915,120]
[400326484,1767376343805,250.0,0.00042915,120]
[400326485,1767376343836,151.0,0.00042915,120]
[400326486,1767376344360,250.0,0.00042915,120]
[400326487,1767376344393,151.0,0.00042915,120]
[400326488,1767376344448,151.0,0.00042915,120]
[400326489,1767376344980,151.0,0.00042915,120]
[400326490,1767376345043,151.0,0.00042915,120]
[400326491,1767376345226,500.0,0.00042915,120]
[400326492,1767376345428,250.0,0.00042915,120]
[400326493,1767376345603,151.0,0.00042915,120]
[400326494,1767376345633,151.0,0.00042915,120]
[400326495,1767376346238,151.0,0.00042915,120]
[400326496,1767376346424,300.0,0.00042915,120]
[400326497,1767376347008,300.0,0.00042915,120]
[400326498,1767376348441,208.9192932,0.00042915,120]
[400326499,1767376349262,500.0,0.00042915,120]
[400326500,1767376349874,500.0,0.00042915,120]
[400326501,1767376351044,500.0,0.00042915,120]
[400326502,1767376351675,500.0,0.00042915,120]
[400326503,1767376352270,500.0,0.00042915,120]
[400326504,1767376352879,500.0,0.00042915,120]
[400326505,1767376358803,500.0,0.00042915,120]
[400326506,1767376359006,500.0,0.00042915,120]
[400326507,1767376359282,500.0,0.00042915,120]
[400326508,1767376359488,500.0,0.00042915,120]
[400326509,1767376359769,500.0,0.00042915,120]
[400326510,1767376360006,500.0,0.00042915,120]
[400326511,1767376360256,500.0,0.00042915,120]
[400326512,1767376360482,500.0,0.00042915,120]
[400326513,1767376360713,500.0,0.00042915,120]
[400326514,1767376360968,500.0,0.00042915,120]
[400326515,1767376361229,500.0,0.00042915,120]
[400326516,1767376361569,500.0,0.00042915,120]
[400326517,1767376361799,500.0,0.00042915,120]
[400326518,1767376362029,500.0,0.00042915,120]
[400326519,1767376362199,461.597001,0.00042915,120]
[400326520,1767376362262,337.88765972,0.00042915,120]
[400326521,1767376363380,2954.0,0.00042915,30]
[400326522,1767376380911,244.60859049,0.00042915,120]
[400326523,1767376382818,416.11265566,0.00042915,120]
[400326524,1767376385630,219.02625871,0.00042915,120]
[400326525,1767376385674,500.0,0.00042915,120]
[400326526,1767376385733,178.10022306,0.00042915,120]
[400326527,1767376385808,227.32378164,0.00042915,120]
[400326528,1767376386909,442.10077534,0.00042915,120]
[400326529,1767376387203,151.0,0.00042915,120]
[400326530,1767376387821,156.587,0.00042915,120]
[400326531,1767376387997,151.0,0.00042915,120]
[400326532,1767376388096,296.44380111,0.00042915,120]
[400326533,1767376388290,500.0,0.00042915,120]
[400326534,1767376388427,156.587,0.00042915,120]
[400326535,1767376388606,151.0,0.00042915,120]
[400326536,1767376388665,151.0,0.00042915,120]
[400326537,1767376389269,151.0,0.00042915,120]
[400326538,1767376389339,151.0,0.00042915,120]
[400326539,1767376389370,349.99164324,0.00042915,120]
[400326540,1767376389729,352.55272675,0.00042915,120]
[400326541,1767376391696,208.54661419,0.00042915,120]
[400326542,1767376392228,500.0,0.00042915,120]
[400326543,1767376392836,500.0,0.00042915,120]
[400326544,1767376393423,500.0,0.00042915,120]
[400326545,1767376393763,289.92464207,0.00042915,120]
[400326546,1767376394011,500.0,0.00042915,120]
[400326547,1767376394255,250.0,0.00042915,120]
[400326548,1767376394608,500.0,0.00042915,120]
[400326549,1767376394654,162.75515553,0.00042915,120]
[400326550,1767376394803,160.00223473,0.00042915,120]
[400326551,1767376394851,250.0,0.00042915,120]
[400326552,1767376395061,574.10562111,0.00042915,120]
[400326553,1767376395204,500.0,0.00042915,120]
[400326554,1767376395475,250.0,0.00042915,120]
[400326555,1767376396090,250.0,0.00042915,120]
[400326556,1767376396224,414.0,0.00042915,120]
[400326557,1767376396733,250.0,0.00042915,120]
[400326558,1767376396831,414.0,0.00042915,120]
[400326559,1767376397347,250.0,0.00042915,120]
[400326560,1767376397956,250.0,0.00042915,120]
[400326561,1767376398920,500.0,0.00042915,120]
[400326562,1767376399253,327.78295002,0.00042915,120]
[400326563,1767376399302,559.9720369,0.00042915,120]
[400326564,1767376399332,359.87849906,0.00042915,120]
[400326565,1767376400149,250.0,0.00042915,120]
[400326566,1767376400198,500.0,0.00042915,120]
[400326567,1767376400804,500.0,0.00042915,120]
[400326568,1767376400907,250.0,0.00042915,120]
[400326569,1767376401126,500.0,0.00042915,120]
[400326570,1767376401311,240.47138348,0.00042915,120]
[400326571,1767376401687,500.0,0.00042915,120]
[400326572,1767376401755,500.0,0.00042915,120]
[400326573,1767376402332,500.0,0.00042915,120]
[400326574,1767376402434,500.0,0.00042915,120]
[400326575,1767376403076,151.0,0.00042915,120]
[400326576,1767376403163,423.81275303,0.00042915,120]
[400326577,1767376403563,500.0,0.00042915,120]
[400326578,1767376403688,156.587,0.00042915,120]
[400326579,1767376404224,500.0,0.00042915,120]
[400326580,1767376404256,217.852101,0.00042915,120]
[400326581,1767376404307,162.380719,0.00042915,120]
[400326582,1767376404846,500.0,0.00042915,120]
[400326583,1767376404924,162.380719,0.00042915,120]
[400326584,1767376405098,500.0,0.00042915,120]
[400326585,1767376405343,201.97446321,0.00042915,120]
[400326586,1767376405485,500.0,0.00042915,120]
[400326587,1767376406030,179.05119765,0.00042915,120]
[400326588,1767376406388,385.96276395,0.00042915,120]
[400326589,1767376406651,159.410525,0.00042915,120]
[400326590,1767376406687,188.0,0.00042915,30]
[400326591,1767376406952,159.410525,0.00042915,120]
[400326592,1767376407252,159.410525,0.00042915,120]
[400326593,1767376407282,285.10923183,0.00042915,120]
[400326594,1767376407590,159.410525,0.00042915,120]
[400326595,1767376407899,159.410525,0.00042915,120]
[400326596,1767376408066,151.0,0.00042915,120]
[400326597,1767376408214,159.410525,0.00042915,120]
[400326598,1767376408704,156.587,0.00042915,120]
[400326599,1767376408963,159.410525,0.00042915,120]
[400326600,1767376409294,159.410525,0.00042915,120]
[400326601,1767376409323,162.380719,0.00042915,120]
[400326602,1767376409597,159.410525,0.00042915,120]
[400326603,1767376409905,168.3888056,0.00042915,120]
[400326604,1767376410511,168.3888056,0.00042915,120]
[400326605,1767376410728,184.02821616,0.00042915,120]
[400326606,1767376413755,213.76100598,0.00042915,120]
[400326607,1767376414105,199.70243608,0.00042915,120]
[400326608,1767376419780,168.33130247,0.00042915,120]
[400326609,1767376421680,394.84498594,0.00042915,120]
[400326610,1767376425014,231.55142348,0.00042915,120]
[400326611,1767376425241,592.47628854,0.00042915,120]
[400326612,1767376427755,500.0,0.00042915,120]
[400326613,1767376427996,236.09022912,0.00042915,120]
[400326614,1767376429158,500.0,0.00042915,120]
[400326615,1767376429401,500.0,0.00042915,120]
[400326616,1767376429635,500.0,0.00042915,120]
[400326617,1767376429874,525.69419607,0.00042915,120]
[400326618,1767376430882,434.98431239,0.00042915,120]
[400326619,1767376432765,500.0,0.00042915,120]
[400326620,1767376432794,500.0,0.00042915,120]
[400326621,1767376433001,500.0,0.00042915,120]
[400326622,1767376433031,230.84005652,0.00042915,120]
[400326623,1767376433242,500.0,0.00042915,120]
[400326624,1767376433477,226.17134481,0.00042915,120]
[400326625,1767376434585,305.12184221,0.00042915,120]
[400326626,1767376436707,500.0,0.00042915,120]
[400326627,1767376436740,500.0,0.00042915,120]
[400326628,1767376436887,500.0,0.00042915,120]
[400326629,1767376437157,574.33633418,0.00042915,120]
[400326630,1767376437849,307.28483047,0.00042915,120]
[400326631,1767376440375,254.29996186,0.00042915,90]
[400326632,1767376440605,287.84620436,0.00042915,120]
[400326633,1767376444047,237.89600789,0.00042915,120]
[400326634,1767376446000,299.78261233,0.00042915,120]
[400326635,1767376447204,173.62716906,0.00042915,120]
[400326636,1767376448292,158.98079563,0.00042915,120]
[400326637,1767376452381,303.17760079,0.00042915,120]
[400326638,1767376454103,288.11595905,0.00042915,120]
[400326639,1767376454937,181.34962199,0.00042915,120]
[400326640,1767376455901,206.98473855,0.00042915,120]
[400326641,1767376460451,358.82423056,0.00042915,120]
[400326642,1767376461519,187.76443189,0.00042915,120]
[400326643,1767376462371,232.62934948,0.00042915,120]
[400326644,1767376464620,189.03177472,0.00042915,120]
[400326645,1767376467214,385.88182487,0.00042915,60]
[400326646,1767376470125,324.0820251,0.00042915,120]
[400326647,1767376470859,431.59653692,0.00042915,120]
[400326648,1767376476439,185.77252768,0.00042915,120]
[400326649,1767376478455,207.9338877,0.00042915,120]
[400326650,1767376479996,500.0,0.00042915,120]
[400326651,1767376480121,500.0,0.00042915,120]
[400326652,1767376480243,309.34453243,0.00042915,120]
[400326653,1767376480370,500.0,0.00042915,120]
[400326654,1767376480616,335.83330152,0.00042915,120]
[400326655,1767376480767,432.73867628,0.00042915,120]
[400326656,1767376481470,421.65182424,0.00042915,120]
[400326657,1767376482074,472.63964607,0.00042915,120]
[400326658,1767376487432,531.81344195,0.00042915,120]
[400326659,1767376489405,313.61699537,0.00042915,120]
[400326660,1767376491704,254.99544288,0.00042915,120]
[400326661,1767376493082,262.7211161,0.00042915,120]
[400326662,1767376495598,500.0,0.00042915,120]
[400326663,1767376495680,216.17198922,0.00042915,120]
[400326664,1767376495840,500.0,0.00042915,120]
[400326665,1767376496079,500.0,0.00042915,120]
[400326666,1767376496315,500.0,0.00042915,120]
[400326667,1767376496502,500.0,0.00042915,120]
[400326668,1767376496562,500.0,0.00042915,120]
[400326669,1767376496769,500.0,0.00042915,120]
[400326670,1767376496877,500.0,0.00042915,120]
[400326671,1767376497050,321.52821034,0.00042915,120]
[400326672,1767376497113,500.0,0.00042915,120]
[400326673,1767376497384,500.0,0.00042915,120]
[400326674,1767376497654,500.0,0.00042915,120]
[400326675,1767376497894,500.0,0.00042915,120]
[400326676,1767376498129,500.0,0.00042915,120]
[400326677,1767376498397,500.0,0.00042915,120]
[400326678,1767376498949,432.72023082,0.00042915,120]
[400326679,1767376500389,383.45314081,0.00042915,120]
[400326680,1767376501399,205.72177535,0.00042915,120]
[400326681,1767376503450,212.7055519,0.00042915,120]
[400326682,1767376505220,603.8717363,0.00042915,120]
[400326683,1767376505278,358.2930711,0.00042915,120]
[400326684,1767376508123,199.41756789,0.00042915,120]
[400326685,1767376509969,185.18039284,0.00042915,120]
[400326686,1767376510289,248.66328592,0.00042915,120]
[400326687,1767376516485,283.31539329,0.00042915,120]
[400326688,1767376518529,224.04118416,0.00042915,120]
[400326689,1767376519014,260.04865071,0.00042915,120]
[400326690,1767376519380,297.78118392,0.00042915,120]
[400326691,1767376523343,500.0,0.00042915,120]
[400326692,1767376523578,500.00928084,0.00042915,120]
[400326693,1767376524019,181.08043849,0.00042915,120]
[400326694,1767376527668,178.22727561,0.00042915,120]
[400326695,1767376533165,220.29582065,0.00042915,120]
[400326696,1767376534702,201.79884269,0.00042915,120]
[400326697,1767376541857,262.95281272,0.00042915,120]
[400326698,1767376544835,381.87976724,0.00042915,120]
[400326699,1767376545817,231.27791622,0.00042915,120]
[400326700,1767376546976,248.78799308,0.00042915,120]
[400326701,1767376550105,211.94405235,0.00042915,120]
[400326702,1767376551804,173.59897472,0.00042915,120]
[400326703,1767376552147,595.79795527,0.00042915,120]
[400326704,1767376557322,275.12136874,0.00042915,120]
[400326705,1767376559074,217.87129825,0.00042915,120]
[400326706,1767376559216,176.04327621,0.00042915,120]
[400326707,1767376560824,310.98208703,0.00042915,120]
[400326708,1767376564191,178.94393109,0.00042915,60]
[400326709,1767376564302,500.0,0.00042915,120]
[400326710,1767376564467,645.72,0.00042915,120]
[400326711,1767376564590,312.09542573,0.00042915,120]
[400326712,1767376564711,645.72,0.00042915,120]
[400326713,1767376565002,645.72,0.00042915,120]
[400326714,1767376565257,645.72,0.00042915,120]
[400326715,1767376565501,645.72,0.00042915,120]
[400326716,1767376565745,645.72,0.00042915,120]
[400326717,1767376565974,645.72,0.00042915,120]
[400326718,1767376566218,645.72,0.00042915,120]
[400326719,1767376566453,645.72,0.00042915,120]
[400326720,1767376566747,645.72,0.00042915,120]
[400326721,1767376566779,214.82680061,0.00042915,120]
[400326722,1767376567325,645.72,0.00042915,120]
[400326723,1767376567573,645.72,0.00042915,120]
[400326724,1767376567800,645.72,0.00042915,120]
[400326725,1767376568077,645.72,0.00042915,120]
[400326726,1767376568311,645.72,0.00042915,120]
[400326727,1767376568575,645.72,0.00042915,120]
[400326728,1767376568804,386.39192367,0.00042915,120]
[400326729,1767376568835,645.72,0.00042915,120]
[400326730,1767376569057,645.72,0.00042915,120]
[400326731,1767376569300,645.72,0.00042915,120]
[400326732,1767376569548,645.72,0.00042915,120]
[400326733,1767376569781,645.72,0.00042915,120]
[400326734,1767376570016,645.72,0.00042915,120]
[400326735,1767376570254,645.72,0.00042915,120]
[400326736,1767376570456,196.34497075,0.00042915,120]
[400326737,1767376570504,645.907406,0.00042915,120]
[400326738,1767376571169,271.35714193,0.00042915,120]
[400326739,1767376572331,190.54402702,0.00042915,120]
[400326740,1767376575329,358.75178289,0.00042915,120]
[400326741,1767376579693,159.07893084,0.00042915,120]
[400326742,1767376582095,309.69791769,0.00042915,120]
[400326743,1767376582205,602.05528953,0.00042915,120]
[400326744,1767376583823,213.41899045,0.00042915,120]
[400326745,1767376583855,449.15943053,0.00042915,120]
[400326746,1767376584483,293.3553525,0.00042915,120]
[400326747,1767376587498,256.19594259,0.00042915,120]
[400326748,1767376588855,155.87016935,0.00042915,120]
[400326749,1767376589493,211.02658202,0.00042915,120]
[400326750,1767376590267,399.88495631,0.00042915,120]
[400326751,1767376592408,167.61970374,0.00042915,120]
[400326752,1767376592494,175.91270836,0.00042915,120]
[400326753,1767376595761,441.05533984,0.00042915,120]
[400326754,1767376596056,218.70073083,0.00042915,120]
[400326755,1767376597650,179.47778268,0.00042915,120]
[400326756,1767376597680,208.86450173,0.00042915,120]
[400326757,1767376598677,2504.17417568,0.00042915,120]
[400326758,1767376599439,386.53199643,0.00042915,120]
[400326759,1767376599551,230.68629215,0.00042915,120]
[400326760,1767376599877,232.85723637,0.00042915,120]
[400326761,1767376604382,600.49031949,0.00042915,120]
[400326762,1767376607728,208.75479595,0.00042915,120]
[400326763,1767376608181,367.48349796,0.00042915,120]
[400326764,1767376613465,185.4190887,0.00042915,120]
[400326765,1767376613635,500.0,0.00042915,120]
[400326766,1767376613972,500.0,0.00042915,120]
[400326767,1767376614170,500.0,0.00042915,120]
[400326768,1767376614202,225.72625601,0.00042915,120]
[400326769,1767376614394,500.0,0.00042915,120]
[400326770,1767376614492,247.72702969,0.00042915,120]
[400326771,1767376614623,500.0,0.00042915,120]
[400326772,1767376614849,500.0,0.00042915,120]
[400326773,1767376615082,500.0,0.00042915,120]
[400326774,1767376615343,500.0,0.00042915,120]
[400326775,1767376615604,500.0,0.00042915,120]
[400326776,1767376615838,500.0,0.00042915,120]
[400326777,1767376615968,180.09225788,0.00042915,120]
[400326778,1767376616086,500.0,0.00042915,120]
[400326779,1767376616333,500.0,0.00042915,120]
[400326780,1767376616363,161.89652473,0.00042915,120]
[400326781,1767376616578,356.15585154,0.00042915,120]
[400326782,1767376616737,182.87557801,0.00042915,120]
[400326783,1767376617751,225.79406608,0.00042915,120]
[400326784,1767376618311,287.58903621,0.00042915,120]
[400326785,1767376624525,200.0,0.00042915,120]
[400326786,1767376625398,391.73660401,0.00042915,120]
[400326787,1767376626943,151.0,0.00042915,120]
[400326788,1767376627331,217.4167774,0.00042915,120]
[400326789,1767376627571,156.587,0.00042915,120]
[400326790,1767376628176,162.380719,0.00042915,120]
[400326791,1767376628262,318.86652059,0.00042915,120]
[400326792,1767376628764,168.3888056,0.00042915,120]
[400326793,1767376629361,174.61919141,0.00042915,120]
[400326794,1767376629460,619.98806244,0.00042915,120]
[400326795,1767376630094,181.08010149,0.00042915,120]
[400326796,1767376630659,187.78006525,0.00042915,120]
[400326797,1767376631268,194.72792766,0.00042915,120]
[400326798,1767376631864,201.93286099,0.00042915,120]
[400326799,1767376632458,209.40437684,0.00042915,120]
[400326800,1767376633076,209.40437684,0.00042915,120]
[400326801,1767376634748,219.63178143,0.00042915,120]
[400326802,1767376635073,200.0,0.00042915,120]
[400326803,1767376635145,300.0,0.00042915,120]
[400326804,1767376635457,207.4,0.00042915,120]
[400326805,1767376635738,311.1,0.00042915,120]
[400326806,1767376636072,215.0738,0.00042915,120]
[400326807,1767376636347,322.6107,0.00042915,120]
[400326808,1767376636648,233.86046293,0.00042915,120]
[400326809,1767376636679,223.0315306,0.00042915,120]
[400326810,1767376636776,877.6,0.00042915,120]
[400326811,1767376636965,334.5472959,0.00042915,120]
[400326812,1767376637020,877.6,0.00042915,120]
[400326813,1767376637258,877.6,0.00042915,120]
[400326814,1767376637297,231.28369723,0.00042915,120]
[400326815,1767376637557,346.92554585,0.00042915,120]
[400326816,1767376637882,877.6,0.00042915,120]
[400326817,1767376637916,239.84119403,0.00042915,120]
[400326818,1767376638139,877.6,0.00042915,120]
[400326819,1767376638169,359.76179104,0.00042915,120]
[400326820,1767376638385,877.6,0.00042915,120]
[400326821,1767376638500,239.84119403,0.00042915,120]
[400326822,1767376638673,877.6,0.00042915,120]
[400326823,1767376638760,373.07297731,0.00042915,120]
[400326824,1767376638916,877.6,0.00042915,120]
[400326825,1767376639185,877.6,0.00042915,120]
[400326826,1767376639361,386.87667747,0.00042915,120]
[400326827,1767376639444,877.6,0.00042915,120]
[400326828,1767376639672,877.6,0.00042915,120]
[400326829,1767376639959,877.6,0.00042915,120]
[400326830,1767376639989,401.19111454,0.00042915,120]
[400326831,1767376640200,877.6,0.00042915,120]
[400326832,1767376640425,877.6,0.00042915,120]
[400326833,1767376640600,401.19111454,0.00042915,120]
[400326834,1767376640663,877.6,0.00042915,120]
[400326835,1767376640894,877.6,0.00042915,120]
[400326836,1767376641124,877.6,0.00042915,120]
[400326837,1767376641351,877.6,0.00042915,120]
[400326838,1767376641587,877.6,0.00042915,120]
[400326839,1767376641824,877.6,0.00042915,120]
[400326840,1767376642082,877.6,0.00042915,120]
[400326841,1767376642314,877.6,0.00042915,120]
[400326842,1767376642542,877.6,0.00042915,120]
[400326843,1767376642772,877.63654948,0.00042915,120]
[400326844,1767376643707,216.65094799,0.00042915,120]
[400326845,1767376643944,200.0,0.00042915,120]
[400326846,1767376645133,217.11983319,0.00042915,120]
[400326847,1767376666713,196.08392656,0.00042915,120]
[400326848,1767376676371,196.23200443,0.00042915,120]
[400326849,1767376683850,220.29512413,0.00042915,120]
[400326850,1767376686224,300.0,0.00042915,120]
[400326851,1767376686849,311.1,0.00042915,120]
[400326852,1767376687502,322.6107,0.00042915,120]
[400326853,1767376687557,213.60154787,0.00042915,120]
[400326854,1767376687838,262.59211813,0.00042915,120]
[400326855,1767376688132,151.0,0.00042915,120]
[400326856,1767376688171,334.5472959,0.00042915,120]
[400326857,1767376688732,156.587,0.00042915,120]
[400326858,1767376688765,346.92554585,0.00042915,120]
[400326859,1767376689331,156.587,0.00042915,120]
[400326860,1767376689364,359.76179104,0.00042915,120]
[400326861,1767376690018,359.76179104,0.00042915,120]
[400326862,1767376694624,250.49393876,0.00042915,120]
[400326863,1767376700668,239.61679737,0.00042915,120]
[400326864,1767376721029,500.0,0.00042915,120]
[400326865,1767376721276,500.0,0.00042915,120]
[400326866,1767376721564,500.0,0.00042915,120]
[400326867,1767376721763,500.0,0.00042915,120]
[400326868,1767376721793,169.89011095,0.00042915,120]
[400326869,1767376722017,500.0,0.00042915,120]
[400326870,1767376722235,500.0,0.00042915,120]
[400326871,1767376722481,329.87435278,0.00042915,120]
[400326872,1767376724626,-150.0,0.00019178,2]
[400326873,1767376724659,-260.73690508,0.00019178,2]
[400326874,1767376724691,-159.96945707,0.00019178,2]
[400326875,1767376724722,-156.24,0.00019199,2]
[400326876,1767376724752,-618.03155836,0.00019726,2]
[400326877,1767376724784,-250.0,0.00019726,2]
[400326878,1767376724814,-150.0,0.0002,20]
[400326879,1767376724844,-1100.0,0.0002017,2]
[400326880,1767376724874,-350.0,0.00020274,2]
[400326881,1767376724903,-450.0,0.00020822,2]
[400326882,1767376724934,-156.24,0.00021119,2]
[400326883,1767376724963,-366.87894895,0.0002137,2]
[400326884,1767376724993,-156.24,0.00023039,2]
[400326885,1767376725457,-1889.873202,0.00024646,2]
[400326886,1767376725488,-700.0,0.0002477,2]
[400326887,1767376725518,-800.0,0.0002481,9]
[400326888,1767376725549,-800.0,0.0002481,9]
[400326889,1767376725580,-800.0,0.0002481,9]
[400326890,1767376725782,-800.0,0.0002481,9]
[400326891,1767376725812,-800.0,0.0002481,9]
[400326892,1767376725841,-800.0,0.0002481,9]
[400326893,1767376725870,-800.0,0.0002481,9]
[400326894,1767376725899,-800.0,0.0002481,9]
[400326895,1767376725928,-700.0,0.0002487,2]
[400326896,1767376725958,-156.24,0.00024958,2]
[400326897,1767376725996,-1200.0,0.00024998,2]
[400326898,1767376726024,-300.0,0.00024998,2]
[400326899,1767376726052,-300.0,0.00024998,2]
[400326900,1767376726081,-345.52697082,0.00024999,2]
[400326901,1767376726110,-899.24425346,0.00024999,2]
[400326902,1767376726138,-1171.50392868,0.00024999,2]
[400326903,1767376726170,-588.8181616,0.00024999,2]
[400326904,1767376726202,-389.82337088,0.00024999,2]
[400326905,1767376726232,-156.24,0.00026878,2]
[400326906,1767376726261,-151.86245974,0.000286,2]
[400326907,1767376726291,-156.24,0.00028798,2]
[400326908,1767376726320,-3336.02310703,0.00029193,2]
[400326909,1767376732010,1049.4669072,0.00028609,5]
[400326910,1767376733374,570.1652175,0.00028609,5]
[400326911,1767376733401,500.31941664,0.00028609,5]
[400326912,1767376736014,151.0,0.00023569,2]
[400326913,1767376738379,151.0,0.00023797,2]
[400326914,1767376741153,1001.56932734,0.00042915,120]
[400326915,1767376741297,192.07415982,0.00042915,120]
[400326916,1767376746281,523.96326318,0.00016973,2]
[400326917,1767376747498,300.0,0.00042915,120]
[400326918,1767376748137,300.0,0.00042915,120]
[400326919,1767376748370,500.0,0.00016973,2]
[400326920,1767376748693,510.21392101,0.00042915,30]
[400326921,1767376750071,500.0,0.00016973,2]
[400326922,1767376750707,507.11936165,0.00016973,2]
[400326923,1767376750921,500.0,0.00016973,2]
[400326924,1767376751278,396.40414885,0.00016973,2]